lending/lending_fUSD_20251218
["ID","MTS","AMOUNT","RATE_DAILY","PERIOD"]
[399034252,1766077502635,-16278.51,0.00042766,120]
[399034253,1766077502731,-6050.97,0.00042766,120]
[399034254,1766077502818,-500.0,0.00042766,120]
[399034255,1766077502909,-779.66,0.00042766,120]
[399034256,1766077502996,-801.39,0.00042766,120]
[399034257,1766077503100,-16278.51,0.00042766,120]
[399034258,1766077503205,-819.37,0.00042766,120]
[399034259,1766077503298,-6050.97,0.00042766,120]
[399034260,1766077503393,-779.66,0.00042766,120]
[399034261,1766077503485,-404.20628152,0.00042766,120]
[399034262,1766077503571,-500.0,0.00042766,120]
[399034263,1766077503665,-801.39,0.00042766,120]
[399034264,1766077503760,-16278.53940944,0.00042766,120]
[399034265,1766077503855,-819.37,0.00042766,120]
[399034266,1766077503954,-779.66,0.00042766,120]
[399034267,1766077504049,-801.39,0.00042766,120]
[399034268,1766077504139,-6051.02641654,0.00042766,120]
[399034269,1766077504236,-500.0,0.00042766,120]
[399034270,1766077504338,-819.47,0.00042766,120]
[399034271,1766077504444,-779.66,0.00042766,120]
[399034272,1766077504546,-801.55843917,0.00042766,120]
[399034273,1766077504644,-993.9,0.00042766,120]
[399034274,1766077504738,-500.0,0.00042766,120]
[399034275,1766077504830,-779.66,0.00042766,120]
[399034276,1766077504925,-993.9,0.00042766,120]
[399034277,1766077505028,-500.0,0.00042766,120]
[399034278,1766077505124,-779.66,0.00042766,120]
[399034279,1766077505220,-993.9,0.00042766,120]
[399034280,1766077505313,-500.0,0.00042766,120]
[399034281,1766077505411,-779.66,0.00042766,120]
[399034282,1766077505510,-993.9,0.00042766,120]
[399034283,1766077505609,-500.0,0.00042766,120]
[399034284,1766077505710,-993.9,0.00042766,120]
[399034285,1766077505805,-779.66,0.00042766,120]
[399034286,1766077505901,-6143.13,0.00042766,120]
[399034287,1766077505998,-500.0,0.00042766,120]
[399034288,1766077506096,-993.9,0.00042766,120]
[399034289,1766077506202,-500.0,0.00042766,120]
[399034290,1766077506300,-779.76357786,0.00042766,120]
[399034291,1766077506396,-500.0,0.00042766,120]
[399034292,1766077506492,-993.9,0.00042766,120]
[399034293,1766077506587,-500.0,0.00042766,120]
[399034294,1766077506680,-6143.13,0.00042766,120]
[399034295,1766077506776,-500.0,0.00042766,120]
[399034296,1766077506874,-993.9,0.00042766,120]
[399034297,1766077506970,-6143.13,0.00042766,120]
[399034298,1766077507066,-500.0,0.00042766,120]
[399034299,1766077507163,-993.9,0.00042766,120]
[399034300,1766077507264,-6143.13,0.00042766,120]
[399034301,1766077507362,-500.0,0.00042766,120]
[399034302,1766077507461,-500.0,0.00042766,120]
[399034303,1766077507557,-993.9,0.00042766,120]
[399034304,1766077507653,-500.0,0.00042766,120]
[399034305,1766077507748,-500.0,0.00042766,120]
[399034306,1766077507842,-6143.13,0.00042766,120]
[399034307,1766077507934,-993.9,0.00042766,120]
[399034308,1766077508030,-500.0,0.00042766,120]
[399034309,1766077508125,-500.0,0.00042766,120]
[399034310,1766077508223,-6143.13,0.00042766,120]
[399034311,1766077508319,-993.9,0.00042766,120]
[399034312,1766077508413,-500.0,0.00042766,120]
[399034313,1766077508506,-500.0,0.00042766,120]
[399034314,1766077508598,-6143.13,0.00042766,120]
[399034315,1766077508694,-993.9,0.00042766,120]
[399034316,1766077508789,-500.0,0.00042766,120]
[399034317,1766077508880,-500.0,0.00042766,120]
[399034318,1766077508972,-993.9,0.00042766,120]
[399034319,1766077509068,-1072.32,0.00042766,120]
[399034320,1766077509167,-500.0,0.00042766,120]
[399034321,1766077509267,-500.0,0.00042766,120]
[399034322,1766077509365,-500.0,0.00042766,120]
[399034323,1766077509463,-993.9,0.00042766,120]
[399034324,1766077509557,-1072.32,0.00042766,120]
[399034325,1766077509652,-6143.13,0.00042766,120]
[399034326,1766077509750,-521.15828896,0.00042766,120]
[399034327,1766077509844,-500.0,0.00042766,120]
[399034328,1766077509938,-500.0,0.00042766,120]
[399034329,1766077510037,-993.9,0.00042766,120]
[399034330,1766077510133,-1072.32,0.00042766,120]
[399034331,1766077510228,-6143.13,0.00042766,120]
[399034332,1766077510320,-500.0,0.00042766,120]
[399034333,1766077510412,-500.0,0.00042766,120]
[399034334,1766077510505,-993.9,0.00042766,120]
[399034335,1766077510599,-6143.13,0.00042766,120]
[399034336,1766077510692,-1072.32,0.00042766,120]
[399034337,1766077510786,-584.80938251,0.00042766,120]
[399034338,1766077510880,-500.0,0.00042766,120]
[399034339,1766077510972,-1072.32,0.00042766,120]
[399034340,1766077511066,-6143.13,0.00042766,120]
[399034341,1766077511159,-500.0,0.00042766,120]
[399034342,1766077511256,-1072.32,0.00042766,120]
[399034343,1766077511351,-993.9,0.00042766,120]
[399034344,1766077511446,-200.04167157,0.00042766,120]
[399034345,1766077511543,-1072.32,0.00042766,120]
[399034346,1766077511638,-993.9,0.00042766,120]
[399034347,1766077511998,-6143.13,0.00042766,120]
[399034348,1766077512093,-1072.32,0.00042766,120]
[399034349,1766077512187,-993.9,0.00042766,120]
[399034350,1766077512286,-6143.13,0.00042766,120]
[399034351,1766077512385,-1072.32,0.00042766,120]
[399034352,1766077512483,-993.9,0.00042766,120]
[399034353,1766077512577,-6143.13,0.00042766,120]
[399034354,1766077512673,-842.77,0.00042766,120]
[399034355,1766077512767,-1072.32,0.00042766,120]
[399034356,1766077512864,-993.9,0.00042766,120]
[399034357,1766077512962,-6143.13,0.00042766,120]
[399034358,1766077513060,-842.77,0.00042766,120]
[399034359,1766077513162,-1072.32,0.00042766,120]
[399034360,1766077513264,-993.9,0.00042766,120]
[399034361,1766077513363,-6143.13,0.00042766,120]
[399034362,1766077513462,-842.77,0.00042766,120]
[399034363,1766077513561,-1072.32,0.00042766,120]
[399034364,1766077513659,-994.1172649,0.00042766,120]
[399034365,1766077513753,-6143.13,0.00042766,120]
[399034366,1766077513848,-842.77,0.00042766,120]
[399034367,1766077513945,-1072.32,0.00042766,120]
[399034368,1766077514055,-6143.13,0.00042766,120]
[399034369,1766077514161,-842.77,0.00042766,120]
[399034370,1766077514259,-1072.32,0.00042766,120]
[399034371,1766077514356,-6143.13,0.00042766,120]
[399034372,1766077514456,-842.77,0.00042766,120]
[399034373,1766077514552,-1072.32,0.00042766,120]
[399034374,1766077514648,-6143.13,0.00042766,120]
[399034375,1766077514744,-842.77,0.00042766,120]
[399034376,1766077514842,-1072.32,0.00042766,120]
[399034377,1766077514942,-6143.13,0.00042766,120]
[399034378,1766077515061,-842.77,0.00042766,120]
[399034379,1766077515169,-6110.50239483,0.00042766,120]
[399034380,1766077519400,342.59695128,0.00013282,2]
[399034381,1766077519429,1132.01304872,0.00013282,2]
[399034382,1766077519464,1474.61,0.00013981,2]
[399034383,1766077519498,1474.61,0.0001468,2]
[399034384,1766077519533,1474.61,0.00015379,2]
[399034385,1766077519566,1474.61,0.00016078,2]
[399034386,1766077747478,171.29,0.00015278,2]
[399034388,1766077817079,-199.37,0.0002682,120]
[399034389,1766077817117,-199.37,0.00029258,120]
[399034401,1766077832006,-1474.61,0.00016777,2]
[399034402,1766077832016,-189.05239858,0.00016912,2]
[399034403,1766077832031,-158.23639689,0.00017012,2]
[399034404,1766077832040,-654.11,0.00017247,2]
[399034405,1766077832050,-1474.61,0.00017476,2]
[399034406,1766077832060,-1474.61,0.00018175,2]
[399034407,1766077832069,-250.0,0.00018455,2]
[399034408,1766077832080,-1474.61,0.00018874,2]
[399034409,1766077832090,-200.0,0.00019082,2]
[399034410,1766077832100,-169.54,0.00019193,2]
[399034411,1766077832109,-292.613,0.00019453,2]
[399034412,1766077832119,-1200.0,0.00019504,2]
[399034413,1766077832128,-199.37,0.00019505,2]
[399034414,1766077832138,-1000.0,0.00019512,2]
[399034417,1766077832600,-300.0,0.00019571,2]
[399034418,1766077832633,-300.0,0.00019571,2]
[399034419,1766077832643,-1200.0,0.00019572,2]
[399034420,1766077832652,-1474.61,0.00019573,2]
[399034421,1766077832662,-2061.07757793,0.00019691,2]
[399034422,1766077832672,-575.03663278,0.00019749,2]
[399034423,1766077832681,-167.97014299,0.0001975,2]
[399034424,1766077832691,-329.7674,0.0001975,2]
[399034425,1766077832701,-164760.48023291,0.0001975,2]
[399034426,1766077833363,-7730.63348697,0.0001975,2]
[399034427,1766077833375,-5995.11772407,0.0001975,2]
[399034428,1766077833387,-449.47350996,0.0001975,2]
[399034429,1766077833398,-2294.44404721,0.0001975,2]
[399034430,1766077833413,-1111.79715654,0.0001975,2]
[399034431,1766077833425,-390.37271931,0.0001975,2]
[399034432,1766077833436,-1554.14613501,0.0001975,2]
[399034433,1766077833447,-950.26546194,0.0001975,2]
[399034434,1766077833462,-2900.00000002,0.0001975,2]
[399034435,1766077833473,-3959.83489381,0.0001975,2]
[399034436,1766077838145,-282.20293261,0.0001965,2]
[399034437,1766077838156,-19915.35960644,0.0001975,2]
[399034438,1766077838256,-2612.81,0.0001975,2]
[399034439,1766077838268,-338.68900002,0.0001975,2]
[399034440,1766077838287,-87500.0,0.0001975,2]
[399034441,1766077838299,-5071.0280029,0.0001975,2]
[399034442,1766077838311,-3710.31491856,0.0001975,2]
[399034443,1766077838323,-1283.88819785,0.0001975,2]
[399034444,1766077838335,-651.28972237,0.0001975,2]
[399034502,1766077840160,-313.5452,0.00018355,2]
[399034503,1766077840172,-29.05175128,0.00018355,2]
[399034504,1766077840182,-561.81711841,0.0001975,2]
[399034505,1766077840222,-1815.44836004,0.0001975,2]
[399034506,1766077840330,-396.66388166,0.0001975,2]
[399034507,1766077840384,-1807.69,0.0001975,2]
[399034508,1766077840395,-2871.0,0.0001975,2]
[399034509,1766077840407,-386.7273127,0.0001975,2]
[399034510,1766077840439,-2092.90853264,0.0001975,2]
[399034511,1766077840546,-8102.83272952,0.0001975,2]
[399034527,1766077843136,-18925.97704391,0.0001975,2]
[399034528,1766077843147,-25186.3396482,0.0001975,2]
[399034529,1766077843157,-971.81328667,0.0001975,2]
[399034530,1766077843191,-307.97656556,0.0001975,2]
[399034531,1766077843204,-1397.18855336,0.0001975,2]
[399034532,1766077843215,-371.36820323,0.0001975,2]
[399034533,1766077843226,-495.4497,0.0001975,2]
[399034534,1766077843239,-2531.27195702,0.0001975,2]
[399034535,1766077843250,-1947.79085535,0.0001975,2]
[399034543,1766077844783,-233663.29488101,0.0001975,2]
[399034544,1766077844795,-57565.13606657,0.0001975,2]
[399034545,1766077844807,-4530.44456638,0.0001975,2]
[399034563,1766077846173,-6437.02902888,0.0001975,2]
[399034566,1766077846187,-3255.42329318,0.0001975,2]
[399034569,1766077846198,-2180.0,0.0001975,2]
[399034575,1766077846227,-2950.711,0.0001975,2]
[399034624,1766078094099,-1149.24999825,0.0001975,2]
[399034625,1766078094110,-802.74778673,0.0001975,2]
[399034626,1766078094121,-7288.9295596,0.0001975,2]
[399034629,1766078263301,250.0,0.00017,2]
[399034631,1766078386985,166.21,0.00016712,2]
[399034658,1766078707897,342.59695128,0.00017,2]
[399034659,1766078707930,546202.36628694,0.00017,2]
[399034660,1766078719615,7341.46115044,9e-05,2]
[399034661,1766078725367,10000.01,0.00016,2]
[399034663,1766078761923,4450.97516543,8e-05,2]
[399034664,1766078763997,279.50214594,0.000165,2]
[399034665,1766078764029,898.08433789,0.000165,2]
[399034666,1766078764114,4048.56264106,0.000165,2]
[399034667,1766078783975,-321.0,0.00019648,2]
[399034668,1766078804139,-1000.0,0.00019,2]
[399034669,1766078804160,-342.59695128,0.00019648,2]
[399034670,1766078804182,-300.0,0.00019649,2]
[399034671,1766078804204,-1200.0,0.00019649,2]
[399034672,1766078804230,-500.0,0.00019649,2]
[399034673,1766078804258,-378.19687361,0.00019649,2]
[399034674,1766078804288,-500.0,0.00019649,2]
[399034675,1766078804314,-500.0,0.00019649,2]
[399034676,1766078804340,-500.0,0.00019649,2]
[399034677,1766078804367,-73.21732471,0.00019649,2]
[399034678,1766078815199,5000.00825391,0.000162,5]
[399034680,1766078899925,390.16505235,7.888e-05,2]
[399034682,1766078919699,237408.09189893,0.00016,4]
[399034683,1766078919728,527640.99786012,0.00016,4]
[399034684,1766078934574,-645.0,0.0001995,15]
[399034703,1766079032239,-167.20999119,0.0001699,2]
[399034706,1766079032250,-1200.0,0.00016998,2]
[399034707,1766079032259,-137.26485379,0.00016999,2]
[399034708,1766079032271,-412.73514621,0.00016999,2]
[399034710,1766079032281,-294.0,0.00016999,2]
[399034711,1766079032291,-235.45738135,0.00016999,2]
[399034712,1766079032301,-500.0,0.00016999,2]
[399034713,1766079032311,-500.0,0.00016999,2]
[399034714,1766079032322,-189.55894881,0.00016999,2]
[399034715,1766079032332,-500.0,0.00016999,2]
[399034716,1766079032341,-500.0,0.00016999,2]
[399034717,1766079032352,-302.13788347,0.00016999,2]
[399034718,1766079032361,-5516.72370563,0.00017,2]
[399034719,1766079032372,-801.95128758,0.00017,2]
[399034720,1766079032391,-366.13195705,0.00017,2]
[399034721,1766079032402,-9123.7316167,0.00017,2]
[399034722,1766079032414,-4952.65,0.00017,2]
[399034723,1766079032438,-885.84363645,0.00017,2]
[399034724,1766079032449,-553.0612838,0.00017,2]
[399034725,1766079032468,-864.68137563,0.00017,2]
[399034726,1766079032479,-4687.92848541,0.00017,2]
[399034727,1766079032492,-266.99999979,0.00017,2]
[399034728,1766079032509,-305.0,0.00017,2]
[399034730,1766079032531,-3000.70572044,0.00017,2]
[399034732,1766079032542,-700.36150344,0.00017,2]
[399034756,1766079038276,-548.43566511,0.00017,2]
[399034757,1766079038335,-2402.84123765,0.00017,2]
[399034758,1766079038347,-731.00000004,0.00017,2]
[399034759,1766079038360,-586.03366014,0.00017,2]
[399034760,1766079038372,-734.20333733,0.00017,2]
[399034761,1766079038384,-273.27446649,0.00017,2]
[399034762,1766079038404,-537.64252065,0.00017,2]
[399034763,1766079038415,-3446.44518068,0.00017,2]
[399034764,1766079038426,-22721.2589885,0.00017,2]
[399034765,1766079038439,-813.8673398,0.00017,2]
[399034766,1766079038451,-86500.0,0.00017,2]
[399034767,1766079038467,-421706.05824203,0.00017,2]
[399034768,1766079038479,-825.80335874,0.00017,2]
[399034769,1766079038491,-973.27426277,0.00017,2]
[399034770,1766079038503,-1520755.75927394,0.00017,2]
[399034771,1766079038518,-7307.7119072,0.00017,2]
[399034772,1766079038530,-3774.37063798,0.00017,2]
[399034773,1766079038542,-881.74563338,0.00017,2]
[399034811,1766079040288,-2838.0,0.00017,2]
[399034812,1766079040315,-27249.48216851,0.00017,2]
[399034814,1766079040346,-1111.82664481,0.00017,2]
[399034819,1766079040475,-124.27432092,0.00017,2]
[399034820,1766079040487,-59215.39731365,0.00017,2]
[399034821,1766079040511,-5362.68964564,0.00017,2]
[399034822,1766079040522,-530.6,0.00017,2]
[399034823,1766079040534,-374.3586876,0.00017,2]
[399034824,1766079040547,-509.65562623,0.00017,2]
[399034825,1766079040558,-1668.2263106,0.00017,2]
[399034826,1766079040573,-74211.01390008,0.00017,2]
[399034827,1766079040584,-22339.33419651,0.00017,2]
[399034828,1766079040595,-1129.1994,0.00017,2]
[399034829,1766079040607,-385.42988055,0.00017,2]
[399034830,1766079040619,-865.0,0.00017,2]
[399034831,1766079040633,-1421.76578285,0.00017,2]
[399034832,1766079040645,-9035.5967,0.00017,2]
[399034833,1766079040656,-7142.45768139,0.00017,2]
[399034834,1766079040693,-171.36549983,0.00017,2]
[399034872,1766079043366,-47410.77205882,0.00017,2]
[399034875,1766079043377,-2589.5,0.00017,2]
[399034882,1766079043421,-2838.0,0.00017,2]
[399034884,1766079043432,-867.26068256,0.00017,2]
[399034893,1766079043572,-173171.65575365,0.00017,2]
[399034894,1766079043590,-43323.81962418,0.00017,2]
[399034895,1766079043688,-10924.11116778,0.00017,2]
[399034932,1766079046936,-248614.16850273,0.00017,2]
[399034933,1766079046950,-3474.81960718,0.00017,2]
[399034934,1766079046960,-456.51624893,0.00017,2]
[399034935,1766079047522,-2.9,0.00017,2]
[399034936,1766079047611,-1071.74665715,0.00017,2]
[399034963,1766079218654,-335.0,0.0001995,15]
[399035007,1766079260698,533.7,0.0002,30]
[399035029,1766079436454,292.13,0.00013699,2]
[399035035,1766079987929,1646.62,0.00013,2]
[399035039,1766080188047,679.24,8.603e-05,2]
[399035040,1766080188248,679.24,9.055e-05,2]
[399035041,1766080188449,679.24,9.508e-05,2]
[399035042,1766080188675,679.24,9.961e-05,2]
[399035043,1766080188879,679.24,0.00010414,2]
[399035044,1766080189358,679.24,0.00010866,2]
[399035045,1766080189559,679.24,0.00011319,2]
[399035046,1766080189766,679.24,0.00011772,2]
[399035047,1766080189975,679.24,0.00012225,2]
[399035048,1766080190186,679.24,0.00012678,2]
[399035049,1766080190878,679.24,0.0001313,2]
[399035050,1766080190918,679.24,0.00013583,2]
[399035051,1766080190954,679.24,0.00014036,2]
[399035052,1766080191066,679.24,0.00014489,2]
[399035053,1766080191277,679.24,0.00014941,2]
[399035054,1766080191483,679.24,0.00015394,2]
[399035055,1766080191709,679.24,0.00015847,2]
[399035062,1766080231529,-679.24,0.000163,2]
[399035063,1766080231539,-1307.3681321,0.000165,2]
[399035064,1766080231549,-1200.0,0.00016659,2]
[399035065,1766080231559,-300.0,0.00016659,2]
[399035066,1766080231569,-797.033,0.0001666,2]
[399035067,1766080231579,-1742.59711885,0.0001666,2]
[399035068,1766080231591,-1840.86288115,0.0001666,2]
[399035069,1766080231601,-172.31937397,0.0001666,2]
[399035070,1766080231611,-172.31937397,0.0001666,2]
[399035071,1766080231620,-195.0,0.0001673,2]
[399035072,1766080231631,-679.24,0.00016752,2]
[399035073,1766080231641,-342.59695128,0.00016798,2]
[399035074,1766080231652,-1200.0,0.00016897,2]
[399035075,1766080231662,-207.92011623,0.000169,2]
[399035076,1766080231672,-5414.29383742,0.000169,2]
[399035077,1766080231685,-4321.7438443,0.000169,2]
[399035078,1766080231696,-285.74696825,0.000169,2]
[399035079,1766080231707,-1726.27870671,0.000169,2]
[399035080,1766080231717,-342.59695128,0.000169,2]
[399035081,1766080231727,-550.0,0.00016989,2]
[399035082,1766080231737,-200.0,0.0001699,2]
[399035083,1766080231747,-151.0,0.0001699,2]
[399035084,1766080231757,-151.0,0.0001699,2]
[399035085,1766080231767,-151.0,0.0001699,2]
[399035086,1766080231777,-151.0,0.0001699,2]
[399035087,1766080231787,-151.0,0.0001699,2]
[399035088,1766080231797,-151.0,0.0001699,2]
[399035089,1766080231807,-151.0,0.0001699,2]
[399035090,1766080231818,-151.0,0.0001699,2]
[399035091,1766080231832,-151.0,0.0001699,2]
[399035092,1766080231842,-151.0,0.0001699,2]
[399035093,1766080231852,-151.0,0.0001699,2]
[399035094,1766080231865,-151.0,0.00016997,2]
[399035095,1766080231876,-9761.21,0.00016998,2]
[399035096,1766080231886,-1395.28,0.00016998,2]
[399035097,1766080231896,-150.99,0.00016998,2]
[399035098,1766080231906,-582.90773585,0.00016999,2]
[399035099,1766080231916,-500.0,0.00016999,2]
[399035100,1766080231927,-365.27868297,0.00016999,2]
[399035101,1766080231940,-500.0,0.00016999,2]
[399035102,1766080231951,-500.0,0.00016999,2]
[399035104,1766080231961,-500.0,0.00016999,2]
[399035106,1766080231970,-500.0,0.00016999,2]
[399035109,1766080231985,-500.0,0.00016999,2]
[399035111,1766080231995,-500.0,0.00016999,2]
[399035113,1766080232005,-500.0,0.00016999,2]
[399035115,1766080232014,-500.0,0.00016999,2]
[399035117,1766080232024,-585.19054357,0.00016999,2]
[399035119,1766080232033,-500.0,0.00016999,2]
[399035120,1766080232043,-500.0,0.00016999,2]
[399035122,1766080232053,-500.0,0.00016999,2]
[399035123,1766080232062,-500.0,0.00016999,2]
[399035124,1766080232072,-500.0,0.00016999,2]
[399035125,1766080232081,-500.0,0.00016999,2]
[399035126,1766080232091,-500.0,0.00016999,2]
[399035127,1766080232101,-583.71714779,0.00016999,2]
[399035128,1766080232110,-613.26912292,0.00016999,2]
[399035129,1766080232120,-500.0,0.00016999,2]
[399035130,1766080232129,-500.0,0.00016999,2]
[399035131,1766080232139,-508.77600646,0.00016999,2]
[399035132,1766080232148,-515.95101446,0.00016999,2]
[399035133,1766080232158,-485.29224142,0.00016999,2]
[399035134,1766080232170,-14.70775858,0.00016999,2]
[399035135,1766080232182,-500.0,0.00016999,2]
[399035136,1766080232191,-500.0,0.00016999,2]
[399035137,1766080232201,-500.0,0.00016999,2]
[399035138,1766080232210,-500.0,0.00016999,2]
[399035139,1766080232219,-500.0,0.00016999,2]
[399035140,1766080232229,-155.58129497,0.00016999,2]
[399035141,1766080232238,-500.0,0.00016999,2]
[399035142,1766080232248,-500.0,0.00016999,2]
[399035143,1766080232258,-500.0,0.00016999,2]
[399035144,1766080232267,-239.96829058,0.00016999,2]
[399035145,1766080232277,-1705.7732099,0.00016999,2]
[399035146,1766080232288,-850.9067901,0.00016999,2]
[399035147,1766080232297,-590.88,0.00016999,2]
[399035148,1766080232307,-500.0,0.00016999,2]
[399035149,1766080232316,-500.0,0.00016999,2]
[399035150,1766080232326,-500.0,0.00016999,2]
[399035151,1766080232336,-600.0,0.00016999,2]
[399035152,1766080232345,-500.0,0.00016999,2]
[399035153,1766080232355,-500.0,0.00016999,2]
[399035154,1766080232365,-500.0,0.00016999,2]
[399035155,1766080232374,-254.73819864,0.00016999,2]
[399035156,1766080232384,-391.61476867,0.00016999,2]
[399035157,1766080232395,-500.0,0.00016999,2]
[399035158,1766080232404,-500.0,0.00016999,2]
[399035159,1766080232414,-500.0,0.00016999,2]
[399035160,1766080232424,-396.05751771,0.00016999,2]
[399035161,1766080232436,-500.0,0.00016999,2]
[399035162,1766080232446,-469.93931736,0.00016999,2]
[399035163,1766080232455,-500.0,0.00016999,2]
[399035164,1766080232465,-551.83242866,0.00016999,2]
[399035165,1766080232475,-500.0,0.00016999,2]
[399035166,1766080232484,-577.12122136,0.00016999,2]
[399035167,1766080232494,-576.45817314,0.00016999,2]
[399035168,1766080232504,-500.0,0.00016999,2]
[399035169,1766080232514,-352.54877483,0.00016999,2]
[399035170,1766080232525,-500.0,0.00016999,2]
[399035171,1766080232536,-500.0,0.00016999,2]
[399035172,1766080232546,-500.0,0.00016999,2]
[399035173,1766080232556,-500.0,0.00016999,2]
[399035174,1766080232567,-500.0,0.00016999,2]
[399035175,1766080232577,-503.42551085,0.00016999,2]
[399035176,1766080232587,-475.57517711,0.00016999,2]
[399035177,1766080232597,-500.0,0.00016999,2]
[399035178,1766080232606,-500.0,0.00016999,2]
[399035179,1766080232616,-500.0,0.00016999,2]
[399035180,1766080232626,-339.54310932,0.00016999,2]
[399035181,1766080232635,-160.45689068,0.00016999,2]
[399035182,1766080232645,-159150.23499373,0.00017,2]
[399035183,1766080232656,-6008.37631638,0.00017,2]
[399035184,1766080232668,-9653.69651892,0.00017,2]
[399035185,1766080232681,-9508.433733,0.00017,2]
[399035186,1766080232705,-2223.61727678,0.00017,2]
[399035198,1766080238523,-505.05063861,0.0001699,2]
[399035199,1766080238533,-10129.26690906,0.00017,2]
[399035200,1766080238549,-323.86634354,0.00017,2]
[399035201,1766080238572,-3306.37281369,0.00017,2]
[399035202,1766080238584,-1286580.94185732,0.00017,2]
[399035203,1766080238594,-404.3353941,0.00017,2]
[399035204,1766080238604,-779.3869722,0.00017,2]
[399035205,1766080238614,-3413.9297534,0.00017,2]
[399035206,1766080238623,-500.0,0.00017,2]
[399035207,1766080238634,-8247.0603512,0.00017,2]
[399035208,1766080238643,-250.0,0.00017,2]
[399035209,1766080238653,-679.24,0.00017205,2]
[399035210,1766080238662,-590.88,0.00017273,2]
[399035211,1766080238672,-500.0,0.00017274,2]
[399035212,1766080238683,-6201.27,0.00017331,2]
[399035213,1766080238694,-200.0,0.00017397,2]
[399035214,1766080238704,-590.88,0.00017547,2]
[399035215,1766080238713,-590.88,0.00017821,2]
[399035216,1766080238723,-3240.0,0.0001787,2]
[399035217,1766080238734,-195.0,0.0001793,2]
[399035218,1766080238744,-300.0,0.0001793,2]
[399035219,1766080238755,-3974.45,0.00017988,2]
[399035220,1766080238765,-77764.60860351,0.00018,2]
[399035221,1766080238774,-935.0,0.00018093,2]
[399035222,1766080238784,-590.88,0.00018095,2]
[399035223,1766080238793,-420.0,0.00018202,2]
[399035224,1766080238803,-1680.0,0.00018292,2]
[399035225,1766080238813,-1699.95821387,0.00018326,2]
[399035226,1766080238828,-250.0,0.00018326,2]
[399035227,1766080238838,-195.0,0.00018326,2]
[399035228,1766080238848,-300.0,0.00018326,2]
[399035229,1766080238859,-300.0,0.00018326,2]
[399035230,1766080238869,-300.0,0.00018326,2]
[399035231,1766080238878,-195.0,0.00018326,2]
[399035232,1766080238889,-250.0,0.00018326,2]
[399035233,1766080238901,-590.89,0.00018369,2]
[399035234,1766080238910,-757.0,0.00018457,2]
[399035235,1766080238921,-341.4595937,0.00018637,2]
[399035236,1766080238931,-1146.0,0.00018698,2]
[399035237,1766080238944,-179.0,0.00018698,2]
[399035238,1766080238955,-151.8,0.000188,2]
[399035239,1766080238965,-262.52428147,0.00019,2]
[399035240,1766080238975,-243.07,0.00019024,2]
[399035241,1766080238985,-200.36684517,0.00019082,2]
[399035242,1766080238995,-761.7506926,0.00019153,2]
[399035243,1766080239007,-3009.97370692,0.00019178,2]
[399035244,1766080239017,-203.49,0.00019227,2]
[399035245,1766080239027,-203.77230882,0.00019259,2]
[399035246,1766080239037,-1105.0,0.00019265,2]
[399035247,1766080239047,-5414.29383741,0.00019344,2]
[399035248,1766080239056,-4321.74384426,0.00019344,2]
[399035249,1766080239066,-1840.1678969,0.00019367,2]
[399035250,1766080239075,-500.0,0.000195,2]
[399035251,1766080239085,-541.06660569,0.00019629,2]
[399035252,1766080239095,-203.42597425,0.00019629,2]
[399035253,1766080239104,-169.969554,0.00019634,2]